bitfinex/quotes_ETHUSD_20260313
["timestamp","ask_amount","ask_price","bid_price","bid_amount"]
[1773427538345,1.18785349,2104.7,2104.0,0.0011]
[1773427538346,2.00715529,2104.6,2104.0,0.0011]
[1773427538535,3.24256252,2104.5,2104.0,0.0011]
[1773427539426,4.75172249,2104.6,2104.0,2.19556294]
[1773427539427,1.18790711,2104.6,2104.0,2.19556294]
[1773427539632,2.0546319,2104.5,2104.0,0.0011]
[1773427540034,1.9546319,2104.5,2104.0,0.0011]
[1773427540735,2.00715529,2104.3,2104.0,0.0011]
[1773427542839,2.00715529,2104.1,2104.0,0.0011]
[1773427543243,1.18809999,2104.2,2104.0,0.0011]
[1773427544062,3.19525528,2104.2,2103.8,0.0011]
[1773427545259,1.18809999,2104.2,2103.8,0.0011]
[1773427545466,3.21290201,2104.2,2103.8,0.0011]
[1773427546046,2.02480202,2104.1,2103.8,0.0011]
[1773427546246,2.02480202,2104.1,2103.5,1.3591]
[1773427546844,2.02480202,2104.1,2103.5,0.0011]
[1773427547060,1.18821292,2104.0,2103.5,0.0011]
[1773427547258,3.21301494,2104.0,2103.5,0.0011]
[1773427548378,1.18821292,2104.0,2103.5,2.08130535]
[1773427549372,2.02480202,2103.9,2103.8,0.0011]
[1773427549548,2.02480202,2103.9,2103.5,0.0011]
[1773427551084,1.18821292,2104.0,2103.5,0.0011]
[1773427551461,1.18814284,2104.2,2103.5,2.00937828]
[1773427552391,0.04847661,2104.3,2103.5,2.00937828]
[1773427552684,1.18907593,2104.3,2103.5,2.00937828]
[1773427552874,0.001,2104.3,2103.5,2.00937828]
[1773427553389,1.18905458,2104.3,2103.5,2.00937828]
[1773427553560,1.18905458,2104.3,2103.7,2.00827828]
[1773427555079,1.18905458,2104.3,2103.8,0.04753303]
[1773427555385,1.18905458,2104.3,2103.8,2.05581131]
[1773427556878,1.18905458,2104.3,2103.8,3.19659987]
[1773427557480,1.18905458,2104.3,2103.8,2.00827828]
[1773427557666,1.18905458,2104.3,2103.8,3.19659424]
[1773427557872,1.18905458,2104.3,2103.8,3.24412727]
[1773427558388,3.32981,2104.3,2103.8,2.00827828]
[1773427558576,3.32981,2104.3,2103.6,2.00827828]
[1773427558781,3.32891187,2104.1,2103.5,0.0011]
[1773427559091,3.32891187,2104.1,2103.5,3.24540968]
[1773427559696,3.32891187,2104.1,2103.5,3.19786987]
[1773427559860,3.32891187,2104.1,2103.6,1.358]
[1773427560563,2.14075542,2104.0,2103.6,1.358]
[1773427560775,1.1882694,2103.9,2103.5,1.3591]
[1773427561786,1.1892694,2103.9,2103.7,0.0011]
[1773427563702,3.33002482,2103.9,2103.7,0.0011]
[1773427564382,2.14075542,2103.8,2103.4,0.0011]
[1773427565902,2.14075542,2103.6,2103.4,0.0011]
[1773427568205,1.18849536,2103.5,2103.4,0.0011]
[1773427568803,3.32913779,2103.8,2103.2,2.00827828]
[1773427569112,2.14075542,2103.6,2103.0,0.0011]
[1773427569604,2.14075542,2103.5,2103.0,0.0011]
[1773427569789,2.14075542,2103.5,2102.8,0.0011]
[1773427570381,2.14075542,2103.3,2102.6,0.0011]
[1773427570784,2.14075542,2103.3,2102.4,1.3611]
[1773427571026,2.14075542,2103.3,2102.5,2.03214306]
[1773427572222,2.14075542,2103.3,2102.5,2.00827828]
[1773427572396,2.14075542,2103.1,2102.6,0.02386138]
[1773427573925,2.14075542,2103.1,2102.6,0.02496138]
[1773427574330,2.14075542,2103.1,2102.6,0.0011]
[1773427574627,3.32953335,2103.0,2102.6,0.0011]
[1773427576403,4.75477386,2103.2,2102.7,2.00827828]
[1773427576404,1.18866489,2103.2,2102.7,2.00827828]
[1773427576597,1.18866489,2103.2,2102.8,0.02385685]
[1773427576796,3.32942031,2103.2,2102.7,2.00827828]
[1773427577432,2.14075542,2103.1,2102.6,0.0011]
[1773427578435,1.18877793,2103.0,2102.6,0.0011]
[1773427579933,1.18877793,2103.0,2102.6,2.00937828]
[1773427580906,1.18877793,2103.0,2102.6,3.37137828]
[1773427581440,3.11213174,2103.0,2102.6,1.3631]
[1773427582542,1.18877793,2103.0,2102.6,3.40538989]
[1773427583317,0.05944172,2102.9,2102.6,3.40538989]
[1773427585241,0.05944172,2102.9,2102.6,1.3631]
[1773427585749,1.188891,2102.8,2102.6,1.3631]
[1773427585940,1.188891,2102.8,2102.7,0.0011]
[1773427587939,1.92335381,2102.7,2102.5,0.0011]
[1773427588645,1.92335381,2102.7,2102.2,0.0011]
[1773427588846,1.92335381,2102.7,2101.9,2.06617956]
[1773427589020,1.92335381,2102.7,2102.0,2.04228989]
[1773427589338,1.92335381,2102.7,2101.8,2.04228989]
[1773427589538,1.92335381,2102.7,2101.9,0.02389871]
[1773427589935,1.92335381,2102.5,2101.9,1.37989871]
[1773427590251,1.18900409,2102.6,2102.0,2.04228989]
[1773427590549,1.18900409,2102.6,2102.2,2.04228989]
[1773427590751,1.18897628,2102.7,2102.2,2.04228989]
[1773427590915,1.18897628,2102.7,2102.3,2.06617728]
[1773427591117,3.11233009,2102.7,2102.0,2.04228989]
[1773427591516,3.11233009,2102.7,2102.1,3.40028989]
[1773427591814,3.11233009,2102.7,2102.2,2.04228989]
[1773427592421,3.11233009,2102.7,2102.2,3.23151706]
[1773427592622,3.11233009,2102.7,2102.1,1.358]
[1773427592623,1.18897628,2102.7,2102.3,2.04228989]
[1773427592822,1.18897628,2102.7,2102.1,4.58954276]
[1773427593243,1.18897628,2102.7,2102.2,2.06617841]
[1773427593751,1.18897628,2102.7,2102.2,2.04228989]
[1773427594949,1.18897628,2102.7,2102.3,2.04228989]
[1773427595159,1.24837368,2102.8,2102.4,2.06617162]
[1773427595852,1.24837368,2102.8,2102.4,2.04228989]
[1773427596160,1.92335381,2102.7,2102.2,2.04228989]
[1773427596330,1.92335381,2102.7,2102.1,1.358]
[1773427596729,1.24845429,2102.6,2102.1,1.358]
[1773427596925,1.18900409,2102.6,2102.2,0.02389078]
[1773427597229,1.24845429,2102.6,2102.2,2.06618067]
[1773427598352,1.24845429,2102.6,2102.1,1.358]
[1773427598560,3.1718081,2102.6,2102.1,1.358]
[1773427598757,3.1718081,2102.6,2102.3,0.0011]
[1773427599055,0.001,2102.5,2102.3,0.0011]
[1773427600349,1.92435381,2102.5,2102.1,1.364]
[1773427600639,1.92435381,2102.5,2102.0,0.0011]
[1773427601458,3.112471,2102.4,2102.0,0.0011]
[1773427602964,1.19009566,2102.5,2102.1,2.04228989]
[1773427604367,4.81557086,2102.6,2102.1,2.04228989]
[1773427604368,4.75575761,2102.8,2102.2,2.04228989]
[1773427604540,1.189891,2102.9,2102.4,2.04228989]
[1773427604541,3.11323457,2102.9,2102.4,2.04228989]
[1773427604865,1.18988076,2102.9,2102.5,1.366]
[1773427605952,1.18988076,2102.9,2102.5,3.28986306]
[1773427608578,3.20793022,2102.9,2102.3,1.92386306]
[1773427608752,3.20793022,2102.9,2102.5,1.367]
[1773427608952,2.07749401,2102.8,2102.5,1.367]
[1773427609154,2.07749401,2102.8,2102.1,5.83182615]
[1773427609464,1.18988076,2102.9,2102.2,1.94774932]
[1773427610477,1.18988076,2102.9,2102.4,1.92386306]
[1773427610787,1.18988076,2102.9,2102.4,1.94773801]
[1773427611893,0.001,2102.7,2102.4,1.94773801]
[1773427612780,1.18900409,2102.6,2102.3,0.0011]
[1773427614078,1.96265082,2102.5,2102.3,0.0011]
[1773427614457,1.96265082,2102.5,2102.0,1.3691]
[1773427614779,3.15176801,2102.4,2102.0,1.3691]
[1773427615161,1.18909443,2102.5,2102.1,2.07911231]
[1773427617682,0.001,2102.7,2102.2,2.05521361]
[1773427617979,0.001,2102.7,2102.4,2.05521361]
[1773427618181,0.001,2102.7,2102.5,2.07909194]
[1773427618484,0.001,2102.7,2102.6,1.37]
[1773427618980,0.001,2102.7,2102.6,3.42521361]
[1773427619185,1.18874506,2103.1,2102.7,2.05521361]
[1773427619684,6.71733141,2103.2,2102.6,1.37]
[1773427620088,0.05943607,2103.1,2102.6,1.37]
[1773427620269,2.02208689,2103.1,2102.6,1.37]
[1773427621094,2.02208689,2103.1,2102.3,2.05521361]
[1773427621274,2.02208689,2103.1,2102.0,2.05631361]
[1773427621473,2.02208689,2103.1,2102.0,3.24563668]
[1773427621680,1.96265082,2102.9,2102.0,3.24563668]
[1773427621886,2.02209537,2102.8,2102.0,3.24563668]
[1773427622181,2.02209537,2102.8,2102.0,0.0011]
[1773427622380,2.02209537,2102.8,2102.0,1.3721]
[1773427622570,2.02209537,2102.8,2102.1,0.02388966]
[1773427622878,2.02209537,2102.8,2102.1,2.07910327]
[1773427623514,2.02209537,2102.8,2102.1,0.02388966]
[1773427623701,1.96265082,2102.6,2102.0,0.0011]
[1773427623906,1.96265082,2102.6,2102.1,1.372]
[1773427624213,1.96265082,2102.6,2102.5,0.0011]
[1773427625818,3.21110511,2102.6,2102.5,0.0011]
[1773427626196,3.21110511,2102.6,2102.2,0.0011]
[1773427626693,1.24845429,2102.6,2102.2,0.0011]
[1773427626889,1.18900409,2102.6,2102.2,2.08020213]
[1773427627104,1.96265082,2102.8,2102.2,2.08020213]
[1773427627105,1.18893583,2102.8,2102.2,2.08020213]
[1773427627305,1.18886519,2102.9,2102.2,2.08020213]
[1773427627510,1.18886519,2102.9,2102.2,2.05631361]
[1773427627804,1.18886519,2102.9,2102.3,1.18917376]
[1773427628024,1.18886519,2102.9,2102.4,2.05521361]
[1773427628607,0.06043889,2103.0,2102.4,2.05521361]
[1773427628846,1.18978169,2103.0,2102.4,2.05521361]
[1773427630032,1.96365082,2103.0,2102.3,2.05521361]
[1773427630201,2.02308971,2103.0,2102.4,1.373]
[1773427630934,2.02308971,2103.0,2102.2,0.0011]
[1773427632030,1.96265082,2102.8,2102.2,0.0011]
[1773427632217,1.96265082,2102.6,2102.2,0.0011]
[1773427632909,0.05944455,2102.8,2102.2,0.0011]
[1773427633121,2.02209537,2102.8,2102.2,0.0011]
[1773427634248,1.96265082,2102.6,2102.2,0.0011]
[1773427634410,2.02210102,2102.6,2102.2,0.0011]
[1773427634839,2.02210102,2102.6,2102.0,1.3721]
[1773427635349,2.02210102,2102.6,2101.8,0.0011]
[1773427636015,1.96265082,2102.4,2101.8,0.0011]
[1773427636211,1.96265082,2102.2,2101.8,0.0011]
[1773427638443,3.15193772,2102.1,2101.8,0.0011]
[1773427641051,1.89858039,2102.0,2101.3,3.41921361]
[1773427641253,1.89858039,2102.0,2100.8,3.20409441]
[1773427641745,1.89858039,2102.0,2100.8,3.20409551]
[1773427642119,1.89858039,2102.0,2101.1,2.01407449]
[1773427642318,1.1892869,2102.1,2101.3,2.01407449]
[1773427642549,3.08786729,2102.1,2101.4,1.21361233]
[1773427643036,3.08786729,2102.1,2101.4,2.57961233]
[1773427643536,3.08786729,2102.1,2101.4,4.59368682]
[1773427644033,3.08786729,2102.1,2101.4,3.40400376]
[1773427644238,0.05946717,2102.0,2101.4,3.40400376]
[1773427644436,0.05946717,2102.0,2101.5,3.20370094]
[1773427644437,1.24881521,2102.0,2101.5,3.20370094]
[1773427644625,1.18934804,2102.0,2101.6,2.03799922]
[1773427645552,1.18934804,2102.0,2101.6,0.02392473]
[1773427647254,4.75727869,2102.1,2101.6,0.02392473]
[1773427648527,4.75727869,2102.1,2101.8,0.0011]
[1773427648750,0.001,2101.9,2101.8,0.0011]
[1773427649532,1.95803907,2102.3,2101.8,0.0011]
[1773427649740,1.9580419,2102.2,2101.8,1.3711]
[1773427651254,1.9580419,2102.2,2101.6,1.37]
[1773427651463,3.08786729,2102.1,2101.6,1.37]
[1773427651747,1.95804756,2102.0,2101.6,1.37]
[1773427652125,1.95804756,2102.0,2101.5,0.0011]
[1773427653449,1.89858039,2101.8,2101.5,0.0011]
[1773427653626,1.95805322,2101.8,2101.5,0.0011]
[1773427654063,1.95805322,2101.8,2100.7,2.01407449]
[1773427654232,1.89858039,2101.8,2100.8,2.01407449]
[1773427654431,1.89858039,2101.8,2100.9,2.0391119]
[1773427655144,0.05947566,2101.7,2100.9,2.0391119]
[1773427655458,1.95805605,2101.7,2101.0,1.371]
[1773427655652,1.95805605,2101.7,2101.0,1.39495192]
[1773427655653,1.89858039,2101.5,2101.0,1.39495192]
[1773427656235,1.89858039,2101.5,2101.1,0.0011]
[1773427657056,1.89858039,2101.5,2101.0,1.371]
[1773427657259,1.89858039,2101.5,2101.0,1.3721]
[1773427657475,1.89858039,2101.5,2100.3,2.01407449]
[1773427657765,1.18968306,2101.4,2100.6,2.01407449]
[1773427657937,3.08822695,2101.5,2100.8,2.01407449]
[1773427658132,1.18964656,2101.5,2100.9,2.03803433]
[1773427659163,1.18964656,2101.5,2100.9,2.01407449]
[1773427659362,3.08822695,2101.5,2100.7,2.01407449]
[1773427659531,1.89858039,2101.4,2100.8,1.372]
[1773427659733,1.18973968,2101.3,2100.8,1.372]
[1773427659936,1.18973968,2101.3,2100.5,1.19016593]
[1773427659937,1.89858039,2101.2,2100.5,2.01407449]
[1773427660157,1.89858039,2101.2,2100.5,1.372]
[1773427660460,1.89858039,2101.2,2100.4,1.372]
[1773427661058,1.89858039,2100.9,2099.8,2.01407449]
[1773427661227,1.89858039,2100.9,2099.7,1.1906429]
[1773427661228,1.89858039,2100.9,2099.6,4.5767538]
[1773427661862,3.08860323,2100.8,2100.7,0.0011]
[1773427662158,1.89858039,2100.7,2099.6,4.57677719]
[1773427663358,1.19002284,2100.8,2099.9,2.01407449]
[1773427663548,1.19002284,2100.8,2100.0,2.0380808]
[1773427663861,1.89858039,2101.4,2100.3,2.01407449]
[1773427664062,1.24922666,2101.3,2100.4,4.57632396]
[1773427664670,1.24922666,2101.3,2100.5,2.01407449]
[1773427664964,1.18970875,2101.4,2100.5,2.01407449]
[1773427665754,1.18970875,2101.4,2100.7,1.97347009]
[1773427665951,1.18970875,2101.4,2100.8,0.02396551]
[1773427666168,1.18970875,2101.4,2100.9,1.1899662]
[1773427666169,0.05948415,2101.4,2100.9,1.1899662]
[1773427666355,0.05948132,2101.5,2100.9,1.1899662]
[1773427667057,1.18951637,2101.7,2101.0,1.97347009]
[1773427667258,1.18951637,2101.7,2101.1,3.34547009]
[1773427668305,4.75898656,2101.8,2101.2,1.1897963]
[1773427668444,4.75898656,2101.8,2101.3,1.97347009]
[1773427668445,0.001,2101.8,2101.3,1.97347009]
[1773427668868,0.001,2101.8,2101.2,1.1897963]
[1773427669180,0.06047283,2101.8,2101.3,1.372]
[1773427670362,1.1895596,2101.7,2101.0,1.97347009]
[1773427670666,0.05947849,2101.6,2101.0,1.97347009]
[1773427671379,2.00174822,2101.6,2100.9,1.373]
[1773427672075,1.19049682,2101.8,2101.0,1.85746523]
[1773427672276,1.24996965,2101.8,2101.0,1.85746523]
[1773427672482,1.24996965,2101.8,2101.2,1.85746523]
[1773427674353,0.001,2101.6,2101.2,1.85746523]
[1773427674653,0.001,2101.6,2101.2,3.047242]
[1773427675666,0.001,2101.6,2101.2,1.85746523]
[1773427675868,0.001,2101.6,2101.2,3.04725877]
[1773427676568,0.001,2101.8,2101.4,3.04714829]
[1773427676767,4.75718478,2102.1,2101.4,3.04714829]
[1773427676975,0.05946717,2102.0,2101.4,3.04714829]
[1773427678785,1.18940006,2101.9,2101.4,3.04714829]
[1773427678988,1.24885161,2102.0,2101.4,3.07107982]
[1773427680170,1.24885161,2102.0,2101.4,3.04714829]
[1773427680759,1.24885161,2102.0,2101.5,0.02392813]
[1773427681000,1.24885161,2102.0,2101.5,1.88139336]
[1773427681675,1.94226973,2101.9,2101.3,1.373]
[1773427681879,0.05947283,2101.8,2101.3,1.373]
[1773427682396,0.05947283,2101.8,2101.4,0.02393605]
[1773427682768,1.18951325,2101.7,2101.4,0.02393605]
[1773427684391,1.18951325,2101.7,2101.3,1.373]
[1773427684578,1.94226973,2101.6,2100.9,0.0011]
[1773427684775,3.13189618,2101.5,2101.1,1.373]
[1773427685012,1.94226973,2101.4,2100.9,0.0011]
[1773427685295,1.94226973,2101.4,2100.6,0.0003]
[1773427686287,1.94226973,2101.1,2100.4,0.0011]
[1773427686486,1.94226973,2101.1,2099.7,3.04810264]
[1773427686685,1.94226973,2101.1,2099.6,1.363]
[1773427686686,1.94226973,2100.8,2099.6,2.55370035]
[1773427686871,1.94226973,2100.6,2099.6,2.55370035]
[1773427687082,1.19007949,2100.7,2099.7,1.88148629]
[1773427687270,1.19007949,2100.7,2100.6,0.0011]
[1773427687471,1.19007949,2100.7,2099.6,2.55370056]
[1773427687472,1.19007949,2100.7,2100.4,0.0011]
[1773427687889,3.13234922,2100.7,2100.4,0.0011]
[1773427690005,1.94226973,2100.6,2099.9,2.55651374]
[1773427690313,1.94226973,2100.6,2099.9,1.366]
[1773427690670,1.94226973,2100.6,2099.9,2.55652115]
[1773427691171,3.13223593,2100.9,2100.0,1.88147607]
[1773427691392,1.1899662,2100.9,2100.0,1.88147607]
[1773427692901,1.94226973,2100.8,2100.0,1.85746523]
[1773427693406,3.13234922,2100.7,2100.1,1.367]
[1773427694901,1.94226973,2100.6,2100.1,1.367]
[1773427695398,1.19019281,2100.5,2100.1,1.367]
[1773427695796,1.19019281,2100.5,2099.9,1.19051534]
[1773427696097,3.13246254,2100.5,2099.8,3.04800931]
[1773427696473,3.13246254,2100.5,2099.9,0.0240165]
[1773427697510,3.13246254,2100.5,2099.8,3.04800931]
[1773427698079,1.19019281,2100.5,2099.8,3.04800931]
[1773427698280,1.94226973,2100.4,2099.8,3.04800931]
[1773427698496,1.94226973,2100.4,2099.7,1.19061072]
[1773427698694,1.94226973,2100.4,2099.7,3.04807595]
[1773427699097,1.19019281,2100.5,2099.8,1.85746523]
[1773427699285,4.76030525,2100.9,2100.0,1.85746523]
[1773427699286,1.94226973,2100.9,2100.0,1.85746523]
[1773427699592,1.24944269,2101.0,2100.2,1.85746523]
[1773427699796,1.24944269,2101.0,2100.3,3.2494568]
[1773427700000,1.24944269,2101.0,2100.4,1.85746523]
[1773427700203,0.05949547,2101.0,2100.4,1.85746523]
[1773427700398,1.24937456,2101.1,2100.4,1.85746523]
[1773427700596,0.05949264,2101.1,2100.6,1.85746523]
[1773427700796,1.24920013,2101.4,2100.8,1.85746523]
[1773427701387,1.24920013,2101.4,2100.9,1.369]
[1773427701594,1.24920013,2101.4,2100.9,2.55896114]
[1773427701913,1.24920013,2101.4,2100.9,1.369]
[1773427702528,1.24920013,2101.4,2100.9,2.55896477]
[1773427702698,1.24920013,2101.4,2100.9,1.369]
[1773427704823,1.24920013,2101.4,2100.9,2.55894908]
[1773427705030,0.001,2101.6,2101.0,1.91663804]
[1773427705031,1.19058937,2101.6,2101.0,1.91663804]
[1773427705328,0.03554131,2101.5,2101.0,1.91663804]
[1773427705535,1.22613068,2101.6,2101.0,1.91663804]
[1773427706437,1.85189489,2101.5,2100.9,1.369]
[1773427706657,0.03554131,2101.4,2100.9,1.369]
[1773427707004,0.03554131,2101.4,2100.9,2.55894286]
[1773427708116,0.03554131,2101.4,2100.9,1.369]
[1773427708426,1.18973968,2101.3,2100.8,3.10661774]
[1773427708629,1.18973968,2101.3,2100.9,1.37]
[1773427709015,0.03554131,2101.4,2100.9,3.28663804]
[1773427709219,1.22612483,2101.6,2101.0,1.91663804]
[1773427709514,0.03654131,2101.6,2101.0,1.91663804]
[1773427709714,1.22611323,2101.6,2101.0,1.91663804]
[1773427711517,1.22611323,2101.6,2100.9,1.37]
[1773427711713,1.85189489,2101.5,2100.9,1.37]
[1773427711908,0.03554131,2101.4,2100.9,1.37]
[1773427712322,0.03654131,2101.4,2100.9,1.37]
[1773427712819,1.8884362,2101.4,2100.9,1.37]
[1773427713936,1.85189489,2101.2,2100.3,1.91663804]
[1773427714136,1.8874362,2101.2,2100.3,3.10694392]
[1773427714337,1.19071833,2101.4,2100.4,1.96424801]
[1773427714539,1.19071833,2101.4,2100.6,1.91663804]
[1773427714540,3.07815453,2101.4,2100.6,1.91663804]
[1773427714723,3.07815453,2101.4,2100.7,0.03585838]
[1773427715334,3.07815453,2101.4,2100.8,1.37]
[1773427715530,1.85189489,2101.3,2100.8,1.37]
[1773427715728,1.1897963,2101.2,2100.6,3.1067281]
[1773427715930,1.1897963,2101.2,2100.7,1.37]
[1773427716733,3.04169119,2101.2,2100.6,1.19009006]
[1773427716938,3.04169119,2101.2,2100.7,1.37]
[1773427717245,1.85189489,2101.1,2100.1,4.16801358]
[1773427717421,1.85189489,2101.1,2100.3,30.0]
[1773427717947,3.04180445,2101.0,2100.4,30.0]
[1773427718456,1.18973968,2101.3,2100.5,1.96424575]
[1773427718750,0.03554131,2101.2,2100.5,1.96424575]
[1773427720149,1.22537646,2101.2,2100.6,3.10677419]
[1773427720347,1.18983515,2101.2,2100.7,3.28663804]
[1773427721352,1.18983515,2101.2,2100.8,0.04760091]
[1773427721644,1.18983515,2101.2,2100.7,3.28663804]
[1773427721830,0.03554131,2101.1,2100.7,3.28663804]
[1773427722231,1.22541104,2101.1,2100.7,4.47671304]
[1773427722450,1.18986973,2101.1,2100.7,4.47671304]
[1773427722751,1.18986973,2101.1,2100.7,3.28663804]
[1773427722950,1.22541104,2101.1,2100.7,1.37]
[1773427723947,1.22541104,2101.1,2100.9,0.0011]
[1773427724548,1.85189489,2101.0,2100.6,0.0011]
[1773427724747,1.85189489,2101.0,2100.7,1.371]
[1773427724956,1.22541104,2101.1,2100.7,1.371]
[1773427727355,0.03554131,2101.1,2100.7,2.5610611]
[1773427727555,0.001,2101.2,2100.8,1.88243144]
[1773427728027,1.19069029,2101.4,2100.8,1.88243144]
[1773427729648,1.19069029,2101.4,2100.9,1.1899662]
[1773427730053,0.001,2101.4,2100.9,3.07239764]
[1773427730245,1.18938224,2102.0,2101.2,5.550883]
[1773427730462,2.97099321,2102.2,2101.4,1.88243144]
[1773427731565,2.97095459,2102.2,2101.4,1.88243144]
[1773427731734,2.97095459,2102.2,2101.5,3.04804623]
[1773427732858,1.18923781,2102.2,2101.6,1.85841978]
[1773427733760,1.1892132,2102.3,2101.7,3.04793303]
[1773427734060,1.1892132,2102.3,2101.7,1.372]
[1773427734061,1.76029982,2102.2,2101.7,1.372]
[1773427735736,1.1892869,2102.1,2101.7,1.372]
[1773427736060,2.94954584,2102.2,2101.7,1.372]
[1773427736356,1.18924602,2102.2,2101.7,1.372]
[1773427736563,0.001,2102.0,2101.7,1.372]
[1773427737861,1.19034348,2102.0,2101.7,1.372]
[1773427738047,2.9506433,2102.0,2101.7,1.372]
[1773427738443,2.9506433,2102.0,2101.0,4.76071175]
[1773427738444,1.76029982,2101.9,2101.2,1.85841978]
[1773427738659,1.76029982,2101.9,2101.3,1.372]
[1773427739541,1.76029982,2101.9,2101.4,0.04758732]
[1773427740783,0.001,2102.0,2101.6,1.85841978]
[1773427740985,1.19004118,2102.6,2101.7,1.85841978]
[1773427741278,1.19004118,2102.6,2101.9,1.85841978]
[1773427741448,1.19004118,2102.6,2102.0,3.23141978]
[1773427742164,1.19001149,2102.6,2102.1,1.85841978]
[1773427743169,1.19001149,2102.6,2102.3,1.85841978]
[1773427743170,0.001,2102.6,2102.3,1.85841978]
[1773427744871,0.001,2102.6,2102.0,3.0477361]
[1773427745071,0.001,2102.6,2102.2,9.03342078]
[1773427745271,1.76129982,2103.0,2102.2,1.85841978]
[1773427745272,1.18977994,2103.0,2102.2,1.85841978]
[1773427745571,1.18866797,2103.2,2102.4,1.85841978]
[1773427745755,1.18865418,2103.3,2102.6,1.85841978]
[1773427746075,1.18865418,2103.3,2102.3,1.85841978]
[1773427746076,1.76029982,2103.2,2102.3,1.85841978]
[1773427746755,1.76029982,2103.2,2102.3,1.81808358]
[1773427747469,1.76029982,2103.0,2102.3,1.81808358]
[1773427747672,1.76029982,2103.0,2102.2,1.373]
[1773427747848,1.76029982,2103.0,2102.2,2.56222321]
[1773427748481,1.76029982,2103.0,2102.2,4.42064299]
[1773427748669,1.76029982,2103.0,2102.3,1.85841978]
[1773427749250,1.18872141,2103.1,2102.5,1.85841978]
[1773427749445,0.001,2103.0,2102.5,3.04746101]
[1773427749958,1.76129982,2103.0,2102.4,3.0672]
[1773427750155,1.76129982,2103.0,2102.3,1.85841978]
[1773427750454,1.76129982,2103.0,2102.2,1.3751]
[1773427751246,1.76129982,2103.0,2102.3,0.04756695]
[1773427751449,2.94913428,2102.9,2102.3,0.04756695]
[1773427751848,1.76029982,2102.8,2102.3,0.04756695]
[1773427752055,1.76029982,2102.8,2102.0,0.0011]
[1773427752773,1.76029982,2102.5,2101.7,0.0011]
[1773427753458,1.76029982,2102.3,2101.7,0.0011]
[1773427755253,1.76029982,2102.3,2101.7,0.04868053]
[1773427755853,1.18923033,2102.2,2101.7,0.0011]
[1773427756855,2.94953015,2102.2,2101.7,0.0011]
[1773427757356,1.76029982,2102.6,2101.8,1.85841978]
[1773427757668,1.76029982,2102.6,2101.7,1.19060886]
[1773427758262,1.76029982,2102.4,2101.8,1.85841978]
[1773427758461,1.18906064,2102.5,2101.8,1.85841978]
[1773427758862,1.18906064,2102.5,2101.9,1.374]
[1773427759063,2.94919082,2102.8,2102.1,1.85841978]
[1773427759265,2.94919082,2102.8,2102.2,0.04756921]
[1773427760383,1.188891,2102.8,2102.2,3.09516418]
[1773427760983,1.76129982,2103.0,2102.3,1.84868733]
[1773427761185,2.95011075,2103.0,2102.3,1.84868733]
[1773427762294,0.001,2102.4,2102.3,1.84868733]
[1773427762499,2.95011075,2103.0,2102.3,3.03780732]
[1773427762666,2.95011075,2103.0,2102.4,1.84868733]
[1773427762667,0.001,2103.0,2102.4,1.84868733]
[1773427763188,0.001,2103.0,2102.5,3.22368733]
[1773427763784,1.18978087,2103.0,2102.5,3.22368733]
[1773427763959,1.76603197,2102.9,2102.5,1.375]
[1773427764164,1.76603197,2102.9,2102.2,4.39311775]
[1773427764376,1.76603197,2102.9,2102.3,1.375]
[1773427764579,1.18977918,2103.0,2102.3,1.375]
[1773427764580,0.001,2103.0,2102.5,1.84868733]
[1773427765686,2.95581378,2103.0,2102.4,6.843245]
[1773427765909,2.95581378,2103.0,2102.4,1.375]
[1773427766593,2.95581378,2103.0,2102.5,1.18906064]
[1773427766791,2.95581378,2103.0,2102.4,2.56407169]
[1773427769071,2.95581378,2103.0,2102.5,1.376]
[1773427769783,2.95581378,2103.0,2102.3,1.84868733]
[1773427769784,1.76603197,2102.9,2102.3,1.84868733]
[1773427770089,1.76603197,2102.9,2102.5,1.376]
[1773427770286,0.001,2103.0,2102.6,1.84868733]
[1773427771112,0.001,2103.0,2102.6,3.03764539]
[1773427771269,0.001,2103.0,2102.6,1.84868733]
[1773427771469,0.001,2103.0,2102.5,2.56502522]
[1773427772408,1.76703197,2103.0,2102.4,3.03776495]
[1773427772708,1.76703197,2103.0,2102.6,1.377]
[1773427773306,2.95582772,2103.0,2102.6,1.377]
[1773427773484,2.95582772,2103.0,2102.6,2.56599991]
[1773427773806,0.001,2103.0,2102.6,2.56599991]
[1773427774807,0.001,2102.8,2102.6,2.56599991]
[1773427775008,0.001,2102.8,2102.7,0.0475579]
[1773427775705,0.001,2102.8,2102.7,1.23650544]
[1773427776485,1.76603197,2103.4,2102.8,1.84868733]
[1773427776689,4.75390288,2103.6,2102.8,1.84868733]
[1773427776690,2.95451419,2103.6,2102.8,1.84868733]
[1773427776898,0.001,2103.7,2103.0,1.84868733]
[1773427777083,0.001,2103.7,2103.2,1.84868733]
[1773427777292,0.001,2103.7,2103.4,1.84868733]
[1773427777496,0.001,2103.7,2103.5,1.377]
[1773427777717,0.001,2103.7,2103.1,3.03740287]
[1773427777881,0.001,2103.7,2102.7,4.75572235]
[1773427777882,1.76703197,2103.7,2102.8,3.03753223]
[1773427778083,1.76703197,2103.7,2102.9,1.377]
[1773427778379,1.76703197,2103.7,2102.9,3.2732407]
[1773427778574,1.76703197,2103.7,2102.7,1.84868733]
[1773427778782,1.76703197,2103.7,2102.8,1.378]
[1773427779409,1.76703197,2103.7,2102.9,1.8962407]
[1773427779909,1.1893977,2103.7,2103.1,1.84868733]
[1773427780079,2.95542967,2103.7,2103.1,1.84868733]
[1773427780481,2.95542967,2103.7,2102.9,3.03749105]
[1773427780913,1.76603197,2103.6,2103.0,1.378]
[1773427781580,1.1893977,2103.7,2103.1,3.06108]
[1773427781781,1.1893977,2103.7,2103.1,2.06108]
[1773427782084,0.001,2103.7,2103.1,1.18868749]
[1773427782284,1.76703197,2103.7,2103.1,1.18868749]
[1773427782513,1.76703197,2103.7,2103.0,4.46297165]
[1773427782691,1.76703197,2103.7,2103.0,1.378]
[1773427782890,1.76703197,2103.7,2103.0,1.18877675]
[1773427783104,1.76703197,2103.7,2103.1,1.378]
[1773427783997,1.76703197,2103.7,2103.0,1.18877675]
[1773427783998,1.76603197,2103.5,2103.0,1.18877675]
[1773427784313,1.76603197,2103.5,2103.1,1.378]
[1773427784480,1.76603197,2103.5,2102.7,1.84868733]
[1773427784681,1.76603197,2103.5,2103.0,1.378]
[1773427785936,1.76603197,2103.5,2102.6,1.18898244]
[1773427786219,1.78342698,2103.3,2102.8,1.378]
[1773427786906,1.78442698,2103.3,2102.8,1.378]
[1773427787109,1.78442698,2103.3,2102.9,1.72743429]